Cogmind - Beta 16 @@@ ROGUE MODE // 2026.02.09 @ 13:28:06 Player: Xcalibur Result: Destroyed by 50-1XP(R) with Subdweller Machine Gun Performance ------------- Evolutions (0) 0 Regions Visited (2) 400 Robots Destroyed (24) 120 Value Destroyed (340) 340 Prototype IDs (2) 40 Alien Tech Used (0) 0 Bonus (0) 0 TOTAL SCORE: 900 Bonus ------- None Cogmind --------- Core Integrity 0/250 Matter 235/300 Energy 70/100 System Corruption 0% Temperature Cool (0) Movement Core (50) Location -10/Subcaves Parts ------- > --- POWER (1) -------- (None) > --- PROPULSION (2) --- (None) > --- UTILITY (2) ------ (None) > --- WEAPON (2) ------- Light Assault Rifle > --- INVENTORY (5) ---- Disposable Heat Sink Small Storage Unit Medium Matter Pod (58) EM Pulse Gun Peak State ------------ > --- POWER ------------ Light Ion Engine > --- PROPULSION ------- Light Treads Subdweller Monowheel > --- UTILITY ---------- Disposable Heat Sink Medium Storage Unit > --- WEAPON ----------- Subdweller Laser Light Assault Rifle > --- INVENTORY -------- Wheel Disposable Heat Sink Small Storage Unit Medium Matter Pod EM Pulse Gun Light Assault Rifle Light Assault Rifle Light Assault Rifle Mining Laser [Rating: 11] Favorites ----------- Power Ion Engine Engine Ion Engine Propulsion Light Treads Treads Light Treads Wheel Wheel Utility Medium Storage Unit Device Seismic Detector Storage Medium Storage Unit Protection Scrap Shield Weapon Assault Rifle Energy Gun Subdweller Laser Ballistic Gun Assault Rifle Special Weapon Mining Laser Build | -11 -10 -10 ------- Run | Yrd Mat Sub Slots Evolved . | . . . Power . | . . . Propulsion . | . . . Utility . | . . . Weapon . | . . . Parts Attached 21 | 8 6 7 Power 2 | 1 . 1 Engine 2 | 1 . 1 Core . | . . . Reactor . | . . . Propulsion 6 | 3 2 1 Treads 3 | 2 1 . Leg . | . . . Wheel 3 | 1 1 1 Hover . | . . . Flight . | . . . Utility 6 | 2 2 2 Device 3 | 1 1 1 Storage 2 | 1 1 . Processor . | . . . Hackware . | . . . Protection 1 | . . 1 Artifact . | . . . Weapon 7 | 2 2 3 Energy Gun 1 | . . 1 Energy Cannon . | . . . Ballistic Gun 5 | 2 2 1 Ballistic Cannon . | . . . Launcher . | . . . Special Weapon 1 | . . 1 Impact Weapon . | . . . Slashing Weapon . | . . . Piercing Weapon . | . . . Special Melee Weapon . | . . . Unidentified Prototypes . | . . . Parts Lost 11 | . 2 9 Power 2 | . . 2 Propulsion 4 | . . 4 Utility 2 | . 1 1 Weapon 3 | . 1 2 Highest Loss Streak 7 | . 2 7 To Critical Strikes 1 | . . 1 Average Backups 8 | 4 8 9 Power . | . 1 . Propulsion 2 | 1 2 1 Utility 1 | . 1 2 Weapon 3 | 1 3 4 Tool/Special . | . . . Unused Backups 5 | . . 5 Power . | . . . Propulsion . | . . . Utility 2 | . . 2 Weapon 3 | . . 3 Tool/Special . | . . . Average Slot Usage (%) 95 | . 98 89 Engine 13 | . 14 11 Treads 24 | . 25 20 Wheel 2 | . 2 3 Device 12 | . 12 12 Storage 13 | . 14 12 Energy Gun 2 | . . 6 Ballistic Gun 25 | . 28 20 Peak Build Rating 11 | 7 10 11 Average Rating 8 | 5 8 9 On Entrance 5 | . 7 10 Avg Prop Armor Cover (%) 13 | . 12 14 Naked Turns . | . . . Heaviest Build 21 | 15 20 21 Greatest Support 40 | 40 40 40 Greatest Overweight (x) 3 | 3 1 1 Average Overweight (x) . | . . . Largest Inventory Capacity 10 | 8 10 10 Average Capacity 9 | 7 9 9 Most Carried 10 | 7 10 10 Average Carried 8 | 4 8 9 Final Capacity 10 | 8 10 5 Final Carried 10 | 6 10 4 Class Distribution -------------------- 54% | Mutant 45% | Scavenger-Mutant Dominant Class ---------------- Mutant | -10/Materials Scavenger-Mutant | -10/Subcaves Resources | -11 -10 -10 ----------- Run | Yrd Mat Sub Matter Collected 689 | 304 234 151 Remotely . | . . . Salvage Created 630 | 134 335 161 Parts 48 | 7 26 15 Haulers Intercepted 1 | . 1 . Recyclers Shooed 1 | . 1 . Parts Field Recycled . | . . . Retrieved Matter . | . . . Parts Self-Destructed 15 | . . 15 Prevented . | . . . Parts Restored . | . . . Kills | -11 -10 -10 ------- Run | Yrd Mat Sub Combat Hostiles Destroyed 17 | . 9 8 Guns 17 | . 9 8 Classes Destroyed 8 | 2 5 1 Worker 1 | . 1 . Tunneler 2 | 2 . . Hauler 1 | . 1 . Recycler 1 | 1 . . Watcher 2 | . 2 . Swarmer 13 | . 6 7 Grunt 3 | . 3 . Subdweller 1 | . . 1 Best Kill Streak 4 | 2 4 4 Combat Bots Only 4 | . 3 4 Max Kills in Single Turn 2 | 1 2 1 Gunslinging . | . . . Exploded . | . . . Melee . | . . . Uniques/NPCs Destroyed . | . . . Combat | -11 -10 -10 -------- Run | Yrd Mat Sub Hostile Shots Fired 146 | . 54 92 Missed 45 | . 18 27 Hits 101 | . 36 65 Projectile 101 | . 36 65 Critical Strikes 3 | . . 3 Damage Taken 1309 | . 385 924 Core 252 | . 63 189 Absorbed by Shields . | . . . Core Remaining (%) 100 | 100 . . Volleys Fired 99 | 4 35 60 Largest 2 | 2 2 2 Hottest 100 | 40 40 100 Shots Fired 182 | 8 69 105 Gun 179 | 8 69 102 Cannon . | . . . Launcher . | . . . Special 3 | . . 3 Kinetic 157 | 8 69 80 Thermal 25 | . . 25 Explosive . | . . . Electromagnetic . | . . . Robot Hit Streak 13 | 3 5 13 Robot Miss Streak 6 | 1 3 6 Penetration Max . | . . . Secondary Targets 6 | . 2 4 Max Gunslinging Chain 1 | . 1 1 Shots Hit Robots 117 | 4 38 75 Core Hits 42 | 4 21 17 Critical Kills 1 | . 1 . Critical Parts Destroyed 1 | . . 1 Critical Strikes 2 | . 1 1 Destroy 2 | . 1 1 Melee Attacks . | . . . Impact . | . . . Slashing . | . . . Piercing . | . . . Sneak Attacks . | . . . Combat Hostiles . | . . . Follow-up Attacks . | . . . Damage Inflicted 1362 | 46 498 818 Guns 1362 | 46 498 818 Cannons . | . . . Explosions . | . . . Melee . | . . . Ramming . | . . . Kinetic 969 | 46 498 425 Thermal 393 | . . 393 Explosive . | . . . Electromagnetic . | . . . Impact . | . . . Slashing . | . . . Piercing . | . . . Highest Corruption . | . . . Average Corruption . | . . . Corruption Purged . | . . . Corruption Blocked . | . . . Overload Shots . | . . . Overflow Damage . | . . . Projectiles . | . . . Explosions . | . . . Melee . | . . . Knockbacks . | . . . Impact . | . . . Kinetic . | . . . Secondary . | . . . Self-Inflicted Damage . | . . . Shots . | . . . Rammed . | . . . Targets Rammed . | . . . Kicked . | . . . Crushed . | . . . Highest Temperature 9 | . 4 9 Average Temperature 3 | . 2 9 Received Heat Transfer 216 | . 144 72 Siege Activations . | . . . Martial Activations . | . . . Shielding Activations . | . . . Robots Disrupted . | . . . Combat Hostiles . | . . . Robots Corrupted . | . . . Combat Hostiles . | . . . Parts Fried . | . . . Impact Corruptions . | . . . Robots Melted . | . . . Combat Hostiles . | . . . Parts Melted . | . . . Heat Transferred 475 | . . 475 Parts Sabotaged . | . . . Parts Stolen . | . . . Parts Stripped . | . . . Power Chain Reactions . | . . . Alert | -11 -10 -10 ------- Run | Yrd Mat Sub Maximum Alert Level . | . . . Low Security (%) 100 | 100 100 . Level 1 . | . . . Level 2 . | . . . Level 3 . | . . . Level 4 . | . . . Level 5 . | . . . High Security . | . . . Max Security . | . . . Peak Influence 114 | 10 114 . Initial . | . . . Average 39 | 1 46 . Influence Increases 497 | 15 302 180 Destroy 0b10 Robot/C 320 | . 180 140 Destroy 0b10 Robot/NC 35 | 15 20 . Destroy Leader 46 | . 36 10 Successful Hack 5 | . 5 . Select Force Hacks 30 | . 30 . Destroy Structure 1 | . 1 . Partial Spotted 15 | . 15 . Lose Combat Pursuer 45 | . 15 30 Influence Decreases 497 | 15 302 180 Time Decay 417 | 15 282 120 Lost Part 80 | . 20 60 Squads Dispatched 1 | . 1 . Investigation 1 | . 1 . Extermination . | . . . Reinforcement . | . . . Assault . | . . . Garrison . | . . . Intercept . | . . . Searches Triggered . | . . . Construction Impeded . | . . . Haulers Reinforced . | . . . Active Scanning Responses . | . . . Cargo Convoy Interrupts . | . . . Stealth | -11 -10 -10 --------- Run | Yrd Mat Sub Distress Signals 2 | . 2 . Communications Jammed . | . . . Distress Signals . | . . . Times Spotted 25 | . 15 10 Peak Tracking Total 6 | . 4 6 Tactical Retreats 2 | . 1 1 Traps | -11 -10 -10 ------- Run | Yrd Mat Sub Traps Triggered . | . . . Indirectly . | . . . Trap Hack Attempts . | . . . Triggered . | . . . Disarmed . | . . . Reprogrammed . | . . . Reused . | . . . Traps Extracted . | . . . Installed . | . . . Triggered . | . . . Machines | -11 -10 -10 ---------- Run | Yrd Mat Sub Machines Disabled . | . . . Max in Single Turn . | . . . Machines Repaired . | . . . Machines Dismantled . | . . . Machines Sabotaged . | . . . Overloaded Fab Kills . | . . . Hacking | -11 -10 -10 --------- Run | Yrd Mat Sub Machines Accessed 2 | . 2 . Terminals 1 | . 1 . Fabricators . | . . . Repair Stations . | . . . Recycling Units 1 | . 1 . Scanalyzers . | . . . Garrison Access . | . . . Total Hacks 3 | . 3 . Successful 2 | . 2 . Failed 1 | . 1 . Catastrophic . | . . . Database Lockouts . | . . . Manual 2 | . 2 . Terminals 2 | . 2 . Fabricators . | . . . Repair Stations . | . . . Recycling Units 1 | . 1 . Scanalyzers . | . . . Garrison Access . | . . . Terminal Hacks 1 | . 1 . Prototype ID Bank 1 | . 1 . Fabricator Hacks . | . . . Repair Station Hacks . | . . . Recycling Unit Hacks . | . . . Scanalyzer . | . . . Garrison Access Hacks . | . . . Unauthorized Hacks 1 | . 1 . Terminals . | . . . Fabricators . | . . . Repair Stations . | . . . Recycling Units 1 | . 1 . Tunnel 1 | . 1 . Scanalyzers . | . . . Garrison Access . | . . . Data Cores Recovered . | . . . Used . | . . . Hacking Detections 1 | . 1 . Full Trace Events . | . . . Feedback Events . | . . . Feedback Blocked . | . . . Robot Schematics Acquired . | . . . Robots Built . | . . . Authchips . | . . . Time . | . . . Total Robot Build Rating . | . . . Part Schematics Acquired . | . . . Parts Built . | . . . Authchips . | . . . Time . | . . . Total Part Build Rating . | . . . Part Studies Acquired . | . . . Parts Repaired . | . . . Time . | . . . Parts Recycled . | . . . Recycled Matter . | . . . Retrieved Matter . | . . . Retrieved Components . | . . . Parts Scanalyzed . | . . . Part Schematics Acquired . | . . . Parts Damaged . | . . . Bothacking | -11 -10 -10 ------------ Run | Yrd Mat Sub Used RIF Installer . | . . . Robots Hacked . | . . . Non-combat . | . . . Combat . | . . . Robot Hacks Applied . | . . . Relay Couplers Released . | . . . Fabnet Peak Effective % . | . . . Robots Rewired . | . . . Allies Hacked . | . . . Hacks Repelled . | . . . Allies | -11 -10 -10 -------- Run | Yrd Mat Sub Total Allies . | . . . Largest Group . | . . . Highest-Rated Group . | . . . Highest-Rated Ally . | . . . Total Orders . | . . . Ally Attacks . | . . . Total Damage . | . . . Kills . | . . . Allies Corrupted . | . . . Allies Melted . | . . . Intel | -11 -10 -10 ------- Run | Yrd Mat Sub Active Infowar (turns) 862 | 35 674 153 Terrain 386 | . 233 153 Seismic 476 | 35 441 . Robot Analysis Total . | . . . Derelict Logs Recovered 1 | . . 1 Drone Launches . | . . . Drone Recoveries . | . . . Exploration | -11 -10 -10 ------------- Run | Yrd Mat Sub Turns Passed 1221 | 138 744 339 Spaces Moved 438 | 70 268 100 Core 7 | 6 . 1 Treads 325 | 62 197 66 Legs . | . . . Wheels 106 | 2 71 33 Hover . | . . . Flight . | . . . Fastest Speed 50 | 50 95 100 Average Speed 144 | 153 142 142 Slowest Speed 200 | 200 160 160 Overloaded Moves . | . . . Propulsion Burnouts . | . . . Robots Hopped . | . . . Potential Cave-ins . | . . . Cave-ins Triggered . | . . . Exploration Rate (%) 16 | 5 36 9 Regions Visited 2 Branch Regions 1 Pre-discovered Areas 2 | . 1 1 Known Exits Taken . | . . . Unknown Exits Taken 2 | 1 1 . Scrap Searched . | . . . Spaces Dug . | . . . Terrain Destroyed . | . . . Melee . | . . . Projectile . | . . . AOE . | . . . Terrain Rammed . | . . . Walls Destroyed . | . . . Machines Disabled . | . . . Actions | -11 -10 -10 --------- Run | Yrd Mat Sub Total 850 | 89 559 202 Wait 269 | . 246 23 Move 436 | 69 267 100 Hop . | . . . Pick Up 13 | 6 4 3 Fast Attach 12 | 8 1 3 Attach 5 | . 1 4 Detach 1 | 1 . . Swap 7 | . 4 3 Drop 8 | 1 1 6 Fire 99 | 4 35 60 Melee . | . . . Ram . | . . . Kick . | . . . Crush . | . . . Escape Stasis . | . . . Rewire . | . . . Trap . | . . . Miscellaneous . | . . . Route ------- -11/Scrapyard -10/Materials (discovered 2 exits: [*Min] / [*Sub]) -10/Subcaves (discovered 1 exit: [*Mat]) History --------- Turn | Location | Event 27 | -11/Scrapyard | Discovered new exit (range 15) 139 | -11/Scrapyard | Entered Materials 330 | -10/Materials | Build established: Mutant 604 | -10/Materials | Discovered new exit (range 16) 663 | -10/Materials | Discovered new exit (range 13) 883 | -10/Materials | Entered Subcaves 883 | -10/Subcaves | Discovered new exit (range 8) 937 | -10/Subcaves | Build established: Scavenger-Mutant 968 | -10/Subcaves | Learned location of Storage (-8) 1086 | -10/Subcaves | Core integrity fell below 50% 1179 | -10/Subcaves | Core integrity fell below 20% 1222 | -10/Subcaves | Destroyed by 50-1XP(R) with Subdweller Machine Gun Last Messages --------------- 01094_ Lgt. Assault Rifle fries itself beyond repair. 01094_ S-10 Pest destroyed. 01097_ Flight Unit fries itself beyond repair. 01097_ Acquired 18 matter. 01099_ Acquired Lgt. Assault Rifle. 01100_ Flight Unit fries itself beyond repair. 01160_ I8-2AB(R) destroyed. 01164_ Lgt. Ion Engine destroyed. 01168_ Sub. Monowheel destroyed. 01170_ Lgt. Treads destroyed. 01175_ 50-1XP(R) suffers critical hit (Destroy). 01175_ Destroyed Sub. Power Source. 01180_ Wheel destroyed. 01189_ Dropped Med. Storage Unit. 01189_ 50-1XP(R) affixes Scrap Shield Fragment to Scrap Shield. 01189_ Dropped Disposable Heat Sink. 01190_ Lgt. Assault Rifle destroyed. 01191_ Acquired Scrap Shield. 01212_ Scrap Shield destroyed. 01214_ Sub. Laser destroyed. Map ----- +----------------------------------------------------+ | ?????????????????????????????????????????????????? | | ?????????????????????????????????????????????????? | | ?????????????????????????????????????????????????? | | ?????????????????????????????????????????????????? | | ?????????????????????????????????????????????????? | | ?????????????????????????????????????????????????? | | ?????????????????????????????????????????????????? | | ?????????????????????????????????????????????????? | | ?????????????????????????????????????????????????? | | ?????????????????????????????????????????????????? | | ?????????????????????????????????????????????????? | | ?????????????????????????????????????????????????? | | ?????????????????????????????????????????????????? | | ?????????????????????????????????????????????????? | | ?????????????????????????????????????????????????? | | ?????????????????????????????????????????????????? | | ?????????????????????????????????????????????????? | | ?????????????????????????????????????????????????? | | ?????????????????????????????????????????????????? | | ?????????????????????????????????????????????????? | | ?????????????????????????????????????????????????? | | ?????????????????????????????????????? #?????????? | | ????????????????????????????????????? #??????????? | | ?????????????????????#####????????? #???????????? | | ????????????? "" #""=##??????? #????????????? | | ?????????????? "" " R%@##????# #????????????? | | ??????????????"" ""## #*!#??? ?????????????? | | ??????????????????????###[#### ????????????????? | | ???????????????????????#[|## #??????????????????? | | ???????????????????????## ##??????????????????? | | ????????????????????????## #??????????????????? | | ?????????????????????????## ##??????????????????? | | ??????????????????????????# #???????????????????? | | ????????????????????????### ##??????????????????? | | ???????????????????? ???# #??????????????????? | | ????????????????? ???## #??????????????????? | | ???????????????? ???## #??????????????????? | | ????????????? ###" "????# ##????##???????????? | | ????????????? ????# ##?? ##??????????? | | ???????????? #???## ##? #??????????? | | ???????????? #???## ## #??????????? | | ??????????? ##??## #??????????? | | ???????????? #???## ##??????????? | | ????????????? ????## ##???????????? | | ??????????????=%% ?????# ##????????????? | | ???????????????""" #???### #?????????????? | | ???????????????""" #?### #?????????????? | | ?????????????????# ### #?????????????? | | ?????????????????#" ## ##?????????????? | | ????????????? "##" " %% ## #??????????????? | +----------------------------------------------------+ Best States ------------- Heat Dissipation 25 Coolant Potential 50 Energy Generation 10 Energy Capacity 250 Matter Stores 300 Matter Capacity 300 Sight Range 16 Terrain Scan Range 16 Terrain Scan Density 10 Armor Coverage 800 Evasion (%) 41 Recoil Reduction 2 Item Schematics ----------------- None Robot Schematics ------------------ None Fabricated ------------ Nothing Repaired ---------- Nothing Studied --------- None Alien Tech Used ----------------- None Achievements -------------- None Challenges ------------ None Game ------ Seed NullPlexusBiocell Manual? 0 Play Time 00:09:50 Cumulative 168.5 hours Start 2026.02.09 @ 13:18:20 End 2026.02.09 @ 13:28:06 Sessions 2 Manual Loads 0 Difficulty Rogue Special Mode None Game No. 66 Rogue 66 Adventurer 0 Explorer 0 Win Type - Total 8 Types 7/0/0/1/0/0/0/0/0/0 Lore% 54 Gallery% 59 Achievement% 49 Wizard Run 0 Options --------- Layout 0 ASCII 0 Keyboard 0 Movement Arrows Keybinds 0 Fullscreen 2 Font 18/Terminus Map View 76x50 Zoom Use 0% Tactical HUD 1 Map Filters NONE Filters NONE Steam 1 RUN: 39caa4a5-bcea-49e6-aec7-b1711b2d7b49